bitfinex/quotes_ETHUSD_20220202
["timestamp","ask_amount","ask_price","bid_price","bid_amount"]
[1643780534160,3.06994766,2761.4,2759.6,6.95]
[1643780534359,0.70455,2761.5,2759.6,6.95]
[1643780534360,2.00542609,2761.3,2760.2,0.99999999]
[1643780534603,0.9055,2762.3,2760.6,1.00362096]
[1643780534808,0.9055,2762.3,2761.2,0.01237775]
[1643780535002,7.47,2762.4,2761.2,0.01237775]
[1643780535003,0.181,2762.2,2761.5,0.25]
[1643780535200,0.1809,2762.3,2761.5,0.25]
[1643780535398,0.1809,2762.3,2762.0,0.75916053]
[1643780535599,1.0863,2762.3,2761.6,0.41377474]
[1643780536202,2.377879,2762.2,2761.6,0.41377474]
[1643780536403,2.377879,2762.2,2761.5,0.25]
[1643780536404,0.36245,2762.1,2761.5,0.25]
[1643780536605,0.01237424,2761.9,2761.5,0.25]
[1643780536806,1.26817,2761.8,2760.8,0.00423497]
[1643780537011,0.9058237,2761.6,2760.8,0.00423497]
[1643780537206,2.740329,2761.5,2760.8,0.00423497]
[1643780537409,0.41558241,2761.3,2760.8,0.00423497]
[1643780537706,0.90592,2761.1,2760.8,0.00423497]
[1643780537906,0.1809,2761.0,2760.8,0.00423497]
[1643780538352,0.18155,2760.9,2760.8,0.00423497]
[1643780538537,0.88565,2760.9,2760.8,0.00423497]
[1643780538735,7.42065,2760.9,2760.8,0.00423497]
[1643780539239,0.39871667,2760.4,2759.9,1.1759]
[1643780539439,3.43531909,2760.3,2759.9,1.1759]
[1643780539640,3.43531909,2760.3,2759.3,7.7013]
[1643780539641,3.61686909,2760.3,2759.3,7.7013]
[1643780539837,3.61686909,2760.3,2759.2,1.4914]
[1643780540053,1.0,2760.2,2759.2,1.2414]
[1643780540238,0.1811,2760.3,2759.3,0.1811]
[1643780540438,2.43572602,2760.3,2759.3,0.1811]
[1643780540638,3.43572602,2760.3,2759.6,0.43180255]
[1643780540841,2.43572602,2760.3,2759.6,0.43180255]
[1643780541044,2.43572602,2760.3,2759.6,1.30007598]
[1643780541253,2.43572602,2760.3,2759.6,1.60007598]
[1643780541444,2.31353313,2760.3,2759.6,1.60007598]
[1643780541645,2.30322573,2760.3,2759.6,1.59888301]
[1643780541945,2.48432573,2760.3,2759.6,1.59888301]
[1643780542189,0.1811,2760.3,2759.6,1.59888301]
[1643780542790,0.1811,2760.3,2759.6,1.30007598]
[1643780543797,2.49276745,2760.3,2759.6,1.30007598]
[1643780543994,2.49681776,2760.3,2759.6,1.30007598]
[1643780544594,0.1811,2760.3,2759.6,1.30007598]
[1643780544894,2.48306558,2760.3,2759.6,1.30007598]
[1643780545098,0.1811,2760.3,2759.6,1.30007598]
[1643780545294,2.48909813,2760.3,2759.6,1.30007598]
[1643780546533,0.1811,2760.3,2759.6,1.30007598]
[1643780546734,0.1811,2760.3,2759.3,0.1811]
[1643780546735,3.11065956,2760.3,2759.3,0.1811]
[1643780546939,0.01245728,2759.8,2759.3,0.1811]
[1643780547238,4.55,2759.6,2759.1,0.87869886]
[1643780547434,4.55,2759.6,2759.0,0.7929257]
[1643780547435,0.70455,2759.5,2759.0,0.7929257]
[1643780547654,1.88575,2759.5,2759.0,0.7929257]
[1643780547834,0.34208423,2759.3,2759.0,0.7929257]
[1643780548041,0.86508423,2759.3,2759.0,0.7929257]
[1643780548238,0.90644,2759.2,2759.0,0.7929257]
[1643780548636,1.08764,2759.2,2759.0,0.7929257]
[1643780549238,2.27777105,2759.1,2759.0,0.7929257]
[1643780550687,2.27777105,2759.1,2758.3,4.1200602]
[1643780550688,6.95,2759.0,2758.3,4.1200602]
[1643780550893,3.55,2758.4,2758.3,4.0838602]
[1643780551091,3.55,2758.4,2758.3,3.9815602]
[1643780551092,4.073,2758.4,2758.3,3.9815602]
[1643780551293,0.523,2758.4,2758.3,3.9815602]
[1643780551489,0.7042,2758.4,2758.3,3.9815602]
[1643780552293,1.61096,2758.4,2758.3,3.9815602]
[1643780552688,2.51096,2758.4,2758.3,3.9815602]
[1643780552895,4.90940301,2758.4,2758.3,3.9815602]
[1643780554539,5.35160543,2758.4,2758.3,3.9815602]
[1643780555340,4.90940301,2758.4,2758.3,3.9815602]
[1643780555547,3.32976,2758.4,2758.3,3.9815602]
[1643780555741,2.32976,2758.4,2758.3,3.9815602]
[1643780556043,5.80628167,2758.4,2758.3,3.9815602]
[1643780556443,3.74626531,2758.4,2758.3,3.9815602]
[1643780556743,2.423,2758.4,2758.3,3.9815602]
[1643780557192,1.423,2758.4,2758.3,3.9815602]
[1643780558104,0.9,2758.4,2758.3,3.9815602]
[1643780559101,0.9,2758.4,2758.3,3.8003602]
[1643780562070,9.16413579,2758.4,2758.3,1.52468599]
[1643780562269,8.34777818,2758.4,2758.3,1.52468599]
[1643780563668,5.04777818,2758.4,2758.3,1.52468599]
[1643780564068,5.34777818,2758.4,2758.3,1.52468599]
[1643780564469,7.91556654,2758.4,2758.3,1.52468599]
[1643780567102,0.9,2757.6,2757.5,1.4217]
[1643780567293,0.9,2757.6,2757.2,0.1812]
[1643780567492,0.9,2757.6,2757.1,0.1812]
[1643780572185,1.0,2757.8,2757.1,0.1812]
[1643780572186,0.9,2757.5,2757.1,0.1812]
[1643780577156,0.9,2757.4,2757.1,0.1812]
[1643780578463,0.89872,2757.4,2757.2,0.523]
[1643780578764,0.89872,2757.4,2757.3,7.1812]
[1643780578959,0.89872,2757.4,2757.3,7.7042]
[1643780579989,0.89872,2757.4,2757.3,7.523]
[1643780580187,0.89872,2757.4,2757.3,7.4042]
[1643780581893,0.89872,2757.4,2757.3,1.0042]
[1643780582294,0.89872,2757.4,2757.3,3.7542]
[1643780582694,0.89872,2757.4,2757.3,1.0042]
[1643780582896,0.89872,2757.4,2757.3,0.1812]
[1643780583739,0.89872,2757.4,2757.3,0.4812]
[1643780584342,0.89872,2757.4,2757.3,7.4312]
[1643780585041,0.89872,2757.4,2757.3,0.4812]
[1643780585239,0.89872,2757.4,2757.3,3.5312]
[1643780585639,0.89872,2757.4,2757.3,3.35]
[1643780587285,0.89872,2757.4,2757.3,6.8]
[1643780588490,0.89872,2757.4,2757.3,3.35]
[1643780590194,0.89872,2757.4,2757.3,7.25]
[1643780591368,0.89872,2757.4,2757.3,7.34555014]
[1643780592567,0.89872,2757.4,2757.3,7.52675014]
[1643780592768,0.89760882,2757.4,2757.3,7.52675014]
[1643780592967,0.89760882,2757.4,2757.3,8.89170691]
[1643780593367,0.89760882,2757.4,2757.3,8.90143111]
[1643780595586,0.89760882,2757.4,2757.3,3.62675014]
[1643780597198,0.1812,2758.3,2757.4,0.90657]
[1643780597496,0.89760882,2758.1,2757.9,0.92246744]
[1643780597694,1.07880882,2758.1,2757.9,0.92246744]
[1643780597896,0.89760882,2758.1,2757.9,1.22246744]
[1643780599343,0.89760882,2758.1,2757.9,0.3]
[1643780599745,0.89760882,2758.1,2757.5,2.08817]
[1643780599746,0.89760882,2758.1,2757.6,0.3]
[1643780600346,0.89760882,2758.1,2757.6,0.66732705]
[1643780600546,0.89760882,2758.1,2757.8,0.69404048]
[1643780602190,0.1812,2758.5,2757.8,0.69404048]
[1643780602386,0.89760882,2758.6,2757.8,0.69404048]
[1643780602387,0.89760882,2758.3,2757.8,0.69404048]
[1643780602587,0.89760882,2758.1,2757.8,0.69404048]
[1643780607349,0.89760882,2758.0,2757.8,0.69404048]
[1643780609050,0.89760882,2758.0,2757.9,7.94999999]
[1643780609249,1.0,2758.0,2757.9,12.43504939]
[1643780609445,1.0,2758.0,2757.9,10.05044679]
[1643780609688,2.34649959,2759.3,2758.0,6.95]
[1643780609897,1.53236308,2759.2,2758.1,1.9443]
[1643780610090,0.1812,2759.1,2758.6,0.83003508]
[1643780610291,1.53236308,2759.0,2758.6,0.83003508]
[1643780610490,1.53236308,2759.0,2758.7,0.3]
[1643780611702,0.18155,2758.8,2758.2,0.1812]
[1643780611898,0.18155,2758.8,2757.8,0.1812]
[1643780611899,0.7042,2758.7,2757.8,0.1812]
[1643780612097,0.01230791,2758.4,2757.6,0.1812]
[1643780612299,2.55631305,2758.3,2757.4,0.1812]
[1643780612502,1.53236308,2758.2,2757.3,0.1812]
[1643780612696,0.37184604,2758.0,2757.2,0.86301276]
[1643780612998,1.53236308,2757.9,2757.2,0.1812]
[1643780613199,2.05536308,2757.9,2757.2,0.1812]
[1643780613461,1.53236308,2757.8,2757.2,0.1812]
[1643780613659,1.53236308,2757.8,2757.0,0.3262]
[1643780613660,0.523,2757.7,2757.0,0.3262]
[1643780613859,1.71356308,2757.6,2757.0,0.145]
[1643780614157,4.40838427,2757.5,2757.0,0.145]
[1643780614356,2.87602119,2757.5,2757.0,0.145]
[1643780614557,0.523,2757.5,2757.0,0.145]
[1643780616363,0.89137896,2757.5,2757.0,0.145]
[1643780616665,2.62172828,2757.4,2757.0,0.145]
[1643780616867,3.23735828,2757.3,2757.0,0.145]
[1643780617091,1.53315828,2757.2,2757.0,0.145]
[1643780617297,0.523,2757.2,2757.0,0.145]
[1643780617805,0.1812,2757.3,2757.0,0.145]
[1643780618199,0.1812,2757.4,2756.8,0.84441741]
[1643780618599,2.51042263,2757.4,2756.8,0.84441741]
[1643780618801,1.0,2757.3,2756.5,2.52357]
[1643780619002,4.31921466,2757.2,2756.5,1.4354]
[1643780619201,0.523,2757.1,2756.5,1.4354]
[1643780619500,2.24339453,2757.0,2756.5,1.4354]
[1643780619703,0.523,2757.1,2756.5,1.75993063]
[1643780620001,0.523,2757.1,2756.5,2.65442108]
[1643780620204,0.523,2757.1,2756.4,9.74193]
[1643780620205,3.80697744,2757.0,2756.4,9.74193]
[1643780620410,3.80697744,2757.0,2756.2,0.145039]
[1643780620411,2.05642869,2756.9,2756.2,0.145039]
[1643780620604,0.1812,2756.8,2756.2,0.145039]
[1643780620845,0.70455,2756.7,2756.2,0.145039]
[1643780621047,0.70455,2756.7,2755.8,6.05204233]
[1643780621048,1.71462869,2756.6,2755.8,6.05204233]
[1643780621253,0.43249637,2756.3,2755.8,5.80204233]
[1643780621549,0.523,2756.2,2755.8,5.80204233]
[1643780621848,0.523,2756.1,2755.8,5.80204233]
[1643780622547,1.08877,2756.4,2755.8,6.10204233]
[1643780622548,2.27899433,2756.3,2755.8,6.10204233]
[1643780622750,0.7044,2756.4,2755.8,6.10204233]
[1643780622963,0.18155,2756.7,2755.8,6.10204233]
[1643780622964,0.1814,2756.7,2755.8,5.92084233]
[1643780623253,0.523,2756.8,2755.9,0.1814]
[1643780623254,0.1814,2756.8,2755.9,0.1814]
[1643780623455,2.09293395,2757.2,2755.9,1.4172]
[1643780623456,0.1812,2757.1,2755.9,1.4172]
[1643780623649,0.38559717,2756.9,2755.9,2.32438]
[1643780623849,2.67859235,2756.9,2756.2,0.3]
[1643780624051,2.67859235,2756.9,2755.9,2.32438]
[1643780624052,4.03533092,2756.8,2756.1,0.3]
[1643780624250,2.50181199,2756.8,2756.1,0.3]
[1643780624449,1.53360657,2756.7,2756.1,0.3]
[1643780624695,3.83667804,2756.6,2755.9,0.1814]
[1643780624992,2.48459387,2756.6,2755.9,0.1814]
[1643780625196,2.43033,2756.5,2755.9,0.1814]
[1643780625391,0.1814,2756.4,2755.8,5.92084233]
[1643780625613,4.88854948,2756.5,2755.8,5.92084233]
[1643780626798,3.88854948,2756.5,2755.8,5.92084233]
[1643780627199,1.0,2756.4,2755.8,5.92084233]
[1643780627398,2.25639958,2756.3,2755.8,5.92084233]
[1643780629440,1.0,2756.4,2755.8,5.92084233]
[1643780629638,3.98223525,2756.5,2755.8,5.92084233]
[1643780629639,4.98223525,2756.5,2755.8,5.92084233]
[1643780632094,4.98223525,2756.5,2755.8,5.62084233]
[1643780632095,0.90737,2756.3,2755.8,5.62084233]
[1643780632298,0.18155,2756.4,2755.8,5.62084233]
[1643780632299,3.36694656,2756.2,2755.8,5.62084233]
[1643780632493,3.09562155,2756.1,2755.8,5.62084233]
[1643780632694,0.1814,2756.0,2755.8,5.62084233]
[1643780632897,3.523,2755.9,2755.8,5.62084233]
[1643780633094,0.96800661,2755.9,2755.8,5.62084233]
[1643780633302,1.523,2755.9,2755.8,5.62084233]
[1643780633497,0.523,2755.9,2755.8,5.62084233]
[1643780636252,0.1814,2756.0,2755.8,6.40364561]
[1643780636451,0.1814,2756.1,2755.8,6.40364561]
[1643780637049,0.39137564,2756.2,2755.8,6.40364561]
[1643780638651,0.39137564,2756.2,2755.8,6.7308307]
[1643780638952,0.34137564,2756.2,2755.8,7.0308307]
[1643780639454,0.34137564,2756.2,2755.8,6.70364561]
[1643780640490,0.34137564,2756.2,2755.8,5.62084233]
[1643780640688,2.27278889,2756.1,2755.8,5.62084233]
[1643780641292,3.27278889,2756.1,2755.8,5.62084233]
[1643780641492,2.27278889,2756.1,2755.8,5.62084233]
[1643780641891,3.27278889,2756.1,2755.8,5.62084233]
[1643780645447,3.63573889,2756.1,2755.8,5.62084233]
[1643780645648,0.477,2756.0,2755.8,5.62084233]
[1643780645847,1.477,2756.0,2755.8,5.62084233]
[1643780646451,0.477,2756.0,2755.8,5.62084233]
[1643780647290,0.6584,2756.1,2755.8,5.62084233]
[1643780647691,1.6584,2756.1,2755.8,5.62084233]
[1643780649791,0.6584,2756.1,2755.8,5.92084233]
[1643780650093,0.477,2756.1,2755.8,5.92084233]
[1643780650840,0.477,2756.1,2755.9,0.82255875]
[1643780652243,0.1814,2756.5,2755.9,0.82255875]
[1643780652244,0.477,2756.0,2755.9,0.82255875]
[1643780653048,0.477,2756.0,2755.9,3.99845433]
[1643780653448,0.477,2756.0,2755.9,10.94845433]
[1643780654796,0.477,2756.0,2755.9,1.30395875]
[1643780655196,0.477,2756.0,2755.9,1.00395875]
[1643780655397,0.477,2756.0,2755.9,0.1814]
[1643780655597,0.477,2756.0,2755.8,5.62084233]
[1643780655795,0.477,2756.0,2755.8,5.92084233]
[1643780655997,0.477,2756.0,2755.8,5.62084233]
[1643780656703,0.477,2756.0,2755.9,0.89639334]
[1643780657297,0.1814,2756.4,2755.9,0.89639334]
[1643780657298,0.6584,2756.4,2755.9,0.89639334]
[1643780657900,0.6584,2756.4,2755.9,1.19639334]
[1643780658552,0.6584,2756.4,2755.8,5.92084233]
[1643780658747,0.477,2756.2,2755.8,5.62084233]
[1643780658948,0.477,2756.0,2755.8,3.98476135]
[1643780659145,4.87371812,2755.9,2755.8,3.98476135]
[1643780659351,3.71520875,2755.9,2755.8,3.98476135]
[1643780659944,2.1814,2755.9,2755.8,3.98476135]
[1643780660143,1.1814,2755.9,2755.8,3.98476135]
[1643780660955,1.0,2755.9,2755.8,3.98476135]
[1643780661749,1.0,2755.9,2755.8,4.28476135]
[1643780663392,2.53372909,2755.9,2755.8,4.28476135]
[1643780663796,1.0,2755.9,2755.8,4.28476135]
[1643780664603,2.53372497,2755.9,2755.8,4.28476135]
[1643780665298,2.53372497,2755.9,2755.8,3.98476135]
[1643780666141,2.01072497,2755.9,2755.8,3.98476135]
[1643780666541,2.01072497,2755.9,2755.8,4.28476135]
[1643780666842,2.01070107,2755.9,2755.8,3.98476135]
[1643780667445,0.477,2755.9,2755.8,3.98476135]
[1643780667644,0.477,2755.9,2755.8,4.28476135]
[1643780668643,0.477,2755.9,2755.8,5.1279768]
[1643780677600,0.6584,2756.1,2755.8,5.1279768]
[1643780677792,0.477,2755.9,2755.8,5.1279768]
[1643780678789,0.477,2755.9,2755.8,4.8279768]
[1643780679691,0.4757052,2755.9,2755.8,4.8279768]
[1643780682749,0.4757052,2755.9,2755.8,5.1279768]
[1643780683946,2.00945162,2755.9,2755.8,5.1279768]
[1643780687098,2.00945162,2755.9,2755.8,4.8279768]
[1643780688342,2.00945162,2755.9,2755.8,5.1279768]
[1643780694801,2.00945162,2755.9,2755.8,4.8279768]
[1643780695846,2.00945162,2755.9,2755.8,5.1279768]
[1643780697044,0.4757052,2755.9,2755.8,5.1279768]
[1643780698046,2.00939807,2755.9,2755.8,5.1279768]
[1643780703746,2.00784896,2755.9,2755.8,5.1279768]
[1643780705344,0.7914,2756.4,2755.9,8.7643]
[1643780705545,0.61,2756.4,2756.0,0.58623814]
[1643780705741,0.1814,2756.7,2756.1,7.25]
[1643780705947,0.1812,2757.0,2756.3,0.76692955]
[1643780706147,0.86005492,2757.2,2757.1,0.80495989]
[1643780706352,0.83060554,2756.8,2756.5,1.1415]
[1643780706647,0.83060554,2756.8,2756.5,1.10426709]
[1643780707593,0.83060554,2756.8,2756.5,2.01117709]
[1643780707995,0.83060554,2756.8,2756.6,1.81386]
[1643780708393,0.83060554,2756.8,2756.7,0.3]
[1643780709493,0.83060554,2756.8,2756.7,3.9675211]
[1643780709696,0.83060554,2756.8,2756.7,5.1459211]
[1643780711369,0.83060554,2756.8,2756.7,4.8181211]
[1643780711668,0.83060554,2756.8,2756.7,3.9675211]
[1643780713968,0.83060554,2756.8,2756.7,4.2675211]
[1643780715993,0.83060554,2756.8,2756.7,3.9675211]
[1643780716196,0.83060554,2756.8,2756.7,3.6675211]
[1643780717495,0.83060554,2756.8,2756.7,3.9675211]
[1643780725842,2.36391909,2756.8,2756.7,3.9675211]
[1643780726450,2.36391909,2756.8,2756.7,2.33195098]
[1643780726747,2.36391909,2756.8,2756.7,1.83376055]
[1643780726947,2.36391909,2756.8,2756.7,2.33195098]
[1643780728355,2.36391909,2756.8,2756.7,2.63195098]
[1643780737695,0.1812,2757.1,2756.8,5.8068]
[1643780737894,0.1812,2757.1,2756.9,1.81347]
[1643780738093,0.67885492,2757.6,2757.0,0.55993182]
[1643780738294,0.1813,2757.7,2757.2,2.33195098]
[1643780738494,0.86005492,2757.8,2757.6,0.86254354]
[1643780738895,0.86005492,2757.8,2757.6,1.16254354]
[1643780739095,0.67885492,2757.7,2757.6,1.16254354]
[1643780739297,0.67885492,2757.8,2757.6,1.16254354]
[1643780739494,0.1812,2757.7,2757.6,1.16254354]
[1643780739901,0.1812,2757.7,2757.6,2.06928354]
[1643780740094,0.67885492,2757.8,2757.6,2.06928354]
[1643780741550,0.1812,2758.0,2757.6,2.06928354]
[1643780741551,0.67885492,2757.7,2757.6,2.06928354]
[1643780742963,0.86005492,2758.0,2757.6,4.38462924]
[1643780743155,0.67885492,2758.0,2757.7,0.9066]
[1643780743358,0.1812,2758.1,2757.7,0.9066]
[1643780743359,0.67885492,2758.1,2757.8,3.6264]
[1643780743754,0.67885492,2758.1,2757.9,2.63195098]
[1643780743957,0.9053715,2758.1,2757.9,2.63195098]
[1643780744156,6.5865715,2758.0,2757.9,2.33195098]
[1643780744359,7.5865715,2758.0,2757.9,2.33195098]
[1643780744594,7.2042,2758.0,2757.9,2.33195098]
[1643780744794,8.56241151,2758.0,2757.9,2.63195098]
[1643780744995,8.56241151,2758.0,2757.9,2.33195098]
[1643780744996,8.74396151,2758.0,2757.9,2.33195098]
[1643780745203,6.95,2757.9,2756.8,0.1812]
[1643780745396,0.68383285,2757.1,2756.6,0.1812]
[1643780745696,1.20683285,2757.1,2756.6,3.62805]
[1643780745898,0.523,2757.1,2756.6,3.62805]
[1643780746098,0.523,2757.1,2757.0,0.82328868]
[1643780746298,0.523,2757.1,2757.0,1.12328868]
[1643780746501,0.523,2757.1,2756.8,2.20868518]
[1643780747200,3.07489648,2757.3,2757.1,1.57990537]
[1643780747399,3.07489648,2757.3,2757.1,1.93805501]
[1643780747400,0.86503285,2757.3,2757.1,1.93805501]
[1643780748101,0.1812,2757.3,2757.1,1.93805501]
[1643780748345,0.68383285,2757.4,2757.1,2.23805501]
[1643780748346,0.1812,2757.4,2757.1,2.23805501]
[1643780749344,0.86503285,2757.6,2757.1,2.23805501]
[1643780749544,0.68383285,2757.6,2757.1,2.23805501]
[1643780749944,0.86503285,2757.7,2757.1,2.23805501]
[1643780750145,0.86503285,2757.8,2757.1,2.23805501]
[1643780750349,0.68383285,2757.7,2757.1,2.23805501]
[1643780750547,0.68383285,2757.7,2757.1,1.03110501]
[1643780751648,0.86503285,2757.8,2757.2,0.1812]
[1643780751851,0.1812,2757.8,2757.2,0.1812]
[1643780752096,0.68383285,2757.9,2757.2,0.1812]
[1643780752295,0.1812,2758.0,2757.2,0.1812]
[1643780752296,0.86503285,2758.0,2757.2,0.1812]
[1643780752499,0.68383285,2758.0,2757.2,0.1812]
[1643780753999,0.68383285,2758.0,2757.7,0.79676537]
[1643780754199,0.68383285,2758.1,2757.7,0.79676537]
[1643780754601,0.86503285,2758.2,2757.7,0.79676537]
[1643780754800,0.86503285,2758.3,2757.7,0.79676537]
[1643780755200,0.68383285,2758.2,2757.7,0.79676537]
[1643780755600,0.86503285,2758.3,2757.7,0.79676537]
[1643780755851,0.68383285,2758.3,2758.2,0.75950307]
[1643780756447,1.09297713,2758.6,2758.2,0.75950307]
[1643780756448,0.68383285,2758.4,2758.2,0.75950307]
[1643780757048,0.68383285,2758.5,2758.2,0.75950307]
[1643780757447,0.68383285,2758.6,2758.2,0.75950307]
[1643780757650,1.53266747,2758.5,2758.2,0.75950307]
[1643780757851,2.21650032,2758.6,2758.2,0.75950307]
[1643780758057,1.53266747,2758.5,2758.2,0.75950307]
[1643780758246,0.68383285,2758.6,2758.2,0.75950307]
[1643780758247,1.53266747,2758.4,2758.2,0.75950307]
[1643780758450,1.53266747,2758.3,2758.2,0.75950307]
[1643780759349,1.53266747,2758.3,2758.1,0.40416496]
[1643780759594,1.53266747,2758.2,2758.1,0.40416496]
[1643780760002,2.21650032,2758.6,2758.1,0.40416496]
[1643780760193,1.53266747,2758.5,2758.1,0.40416496]
[1643780760394,1.53266747,2758.4,2758.1,0.40416496]
[1643780760600,1.53266747,2758.3,2758.2,0.82461016]
[1643780760795,2.21650032,2758.6,2758.2,0.82461016]
[1643780762601,2.21650032,2758.6,2758.1,0.40416496]
[1643780763853,1.53266747,2758.5,2758.1,0.40416496]
[1643780764064,1.53266747,2758.4,2758.2,0.92973282]
[1643780764250,1.53266747,2758.3,2758.2,0.92973282]
[1643780764651,1.53266747,2758.6,2758.2,0.92973282]
[1643780764851,1.53266747,2758.5,2758.2,0.92973282]
[1643780765053,1.53266747,2758.4,2758.2,0.92973282]
[1643780765252,1.53266747,2758.3,2758.2,0.92973282]
[1643780765652,1.53266747,2758.6,2758.2,0.92973282]
[1643780765859,1.53266747,2758.5,2758.1,0.40416496]
[1643780766054,1.53266747,2758.4,2758.1,0.40416496]
[1643780766254,1.53266747,2758.3,2758.1,0.40416496]
[1643780766455,0.86503285,2758.7,2757.9,0.1812]
[1643780766456,1.53266747,2758.2,2757.9,0.1812]
[1643780766653,1.53266747,2758.1,2758.0,0.37697089]
[1643780766856,1.53266747,2758.6,2758.0,0.37697089]
[1643780767092,1.53266747,2758.6,2758.0,0.55817089]
[1643780768296,2.21650032,2758.6,2758.0,0.55817089]
[1643780768894,1.53266747,2758.5,2758.0,0.55817089]
[1643780769094,1.53266747,2758.4,2758.0,0.55817089]
[1643780769295,1.53266747,2758.3,2758.0,0.55817089]
[1643780769495,1.53266747,2758.2,2758.0,0.55817089]
[1643780769696,1.53266747,2758.6,2758.0,0.55817089]
[1643780769896,1.53266747,2758.5,2758.2,0.83413622]
[1643780770195,1.53266747,2758.4,2758.2,0.83413622]
[1643780770394,1.53266747,2758.3,2758.0,0.55817089]
[1643780770597,1.53266747,2758.2,2758.0,0.37697089]
[1643780770840,1.53266747,2758.1,2758.0,0.37697089]
[1643780771251,1.53266747,2758.6,2758.0,0.37697089]
[1643780771448,1.53266747,2758.5,2758.0,1.16673669]
[1643780771647,1.53266747,2758.4,2758.0,1.16673669]
[1643780771950,1.53266747,2758.3,2758.0,1.16673669]
[1643780772147,1.53266747,2758.2,2758.0,1.16673669]
[1643780772347,1.53266747,2758.1,2758.0,1.16673669]
[1643780772747,1.53266747,2758.6,2758.0,1.16673669]
[1643780772948,1.53266747,2758.5,2758.0,1.16673669]
[1643780773148,0.86503285,2758.7,2758.0,1.16673669]
[1643780773149,1.53266747,2758.4,2758.0,1.16673669]
[1643780773351,1.53266747,2758.3,2758.0,1.16673669]
[1643780773556,0.86503285,2758.7,2758.0,1.16673669]
[1643780773557,1.53266747,2758.2,2758.0,0.37697089]
[1643780773748,1.53266747,2758.1,2758.0,0.37697089]
[1643780773949,0.1812,2758.5,2758.0,0.37697089]
[1643780774148,1.53266747,2758.4,2758.0,0.37697089]
[1643780774348,1.53266747,2758.3,2758.0,0.37697089]
[1643780774596,0.68383285,2758.6,2758.0,0.37697089]
[1643780774597,1.53266747,2758.2,2758.0,0.37697089]
[1643780774795,1.53266747,2758.1,2758.0,0.37697089]
[1643780775195,1.53266747,2758.5,2758.0,0.37697089]
[1643780775397,1.53266747,2758.4,2758.0,0.37697089]
[1643780775594,1.53266747,2758.3,2758.0,0.37697089]
[1643780775796,1.53266747,2758.2,2758.0,0.37697089]
[1643780775999,1.53266747,2758.1,2758.0,0.37697089]
[1643780776203,1.53266747,2758.5,2758.0,0.37697089]
[1643780778345,1.53266747,2758.5,2758.0,2.63005581]
[1643780778545,1.53266747,2758.5,2758.0,0.37697089]
[1643780781364,1.53266747,2758.5,2758.0,2.63430597]
[1643780781763,1.53266747,2758.5,2758.1,1.1812]
[1643780781958,1.53266747,2758.5,2758.2,2.82012975]
[1643780782218,1.53266747,2758.5,2758.3,0.1812]
[1643780785220,1.53266747,2758.4,2758.3,0.1812]
[1643780785620,0.1812,2758.7,2757.9,0.55499156]
[1643780785621,1.53266747,2758.6,2757.9,0.55499156]
[1643780785844,0.99974449,2758.8,2757.9,0.55499156]
[1643780785845,1.71386747,2758.5,2757.9,0.55499156]
[1643780786049,1.53266747,2758.4,2757.9,0.55499156]
[1643780786252,0.1812,2758.7,2757.9,0.55499156]
[1643780786253,1.53266747,2758.3,2757.9,0.55499156]
[1643780786449,1.53266747,2758.2,2757.9,1.26435052]
[1643780786654,1.53266747,2758.1,2757.9,1.26435052]
[1643780786851,0.86503285,2758.7,2757.9,1.26435052]
[1643780787051,1.53247749,2758.6,2757.9,1.26435052]
[1643780787251,0.1812,2758.5,2757.9,1.26435052]
[1643780787455,1.53247749,2758.4,2757.9,1.26435052]
[1643780787655,1.53247749,2758.4,2757.9,1.56435052]
[1643780787859,1.53247749,2758.3,2757.9,1.56435052]
[1643780788158,1.53247749,2758.2,2757.9,1.56435052]
[1643780788357,1.53247749,2758.1,2757.9,1.56435052]
[1643780788554,0.86503285,2758.7,2757.9,1.56435052]
[1643780788755,1.53246414,2758.6,2757.9,1.74555052]
[1643780789356,1.53246414,2758.6,2757.9,1.74442551]
[1643780789601,1.53246414,2758.6,2757.9,1.44555052]
[1643780790801,1.53246414,2758.6,2757.9,4.66702375]
[1643780791002,1.53246414,2758.6,2757.9,2.35195052]
[1643780791203,1.53246414,2758.6,2757.9,5.26695302]
[1643780792203,1.53246414,2758.6,2757.9,2.95195052]
[1643780792404,2.39749699,2758.7,2757.9,2.95195052]
[1643780792603,1.53246414,2758.6,2757.9,2.95195052]
[1643780793003,2.21629699,2758.6,2757.9,2.35195052]
[1643780793203,2.21629699,2758.6,2757.9,1.44555052]
[1643780793652,0.34491299,2758.5,2757.9,1.44555052]
[1643780793851,1.53246414,2758.4,2757.9,1.44555052]
[1643780794051,2.56120998,2758.5,2757.9,1.44555052]
[1643780794253,1.53246414,2758.4,2757.9,1.44555052]
[1643780794851,0.68383285,2758.5,2757.9,1.74555052]
[1643780794852,1.53246414,2758.3,2757.9,1.74555052]
[1643780795053,1.53246414,2758.2,2757.9,1.56435052]
[1643780795255,0.1812,2758.6,2757.9,1.86435052]
[1643780795256,1.53246414,2758.1,2757.9,1.86435052]
[1643780795455,1.53246414,2758.5,2757.9,1.86435052]
[1643780795856,1.53246414,2758.5,2757.9,2.19274837]
[1643780796055,1.53246414,2758.5,2757.9,1.59274837]
[1643780796459,1.53246414,2758.5,2757.9,2.19274837]
[1643780796657,1.53246414,2758.5,2758.0,2.29706369]
[1643780796857,1.53246414,2758.5,2758.0,2.47826369]
[1643780797097,1.53246414,2758.4,2758.0,2.47826369]
[1643780797292,0.68383285,2758.7,2758.0,2.47826369]
[1643780797293,1.53246414,2758.3,2758.0,2.47826369]
[1643780797494,0.1812,2758.9,2758.0,3.38459369]
[1643780797693,1.53218837,2758.8,2758.5,0.87540358]
[1643780798093,1.53218837,2758.8,2758.5,1.47540358]
[1643780799698,0.1812,2758.9,2758.3,0.3]
[1643780799699,1.33440344,2758.4,2758.3,0.3]
[1643780799894,1.53218837,2758.8,2758.1,0.3]
[1643780800093,1.53218837,2758.7,2758.1,0.3]
[1643780800293,0.68383285,2758.8,2758.0,3.9058444]
[1643780800693,2.21602122,2758.8,2758.3,0.39062964]
[1643780800949,2.21602122,2758.8,2758.5,0.75338354]
[1643780801152,0.68383285,2758.8,2758.5,0.75338354]
[1643780801349,1.53218837,2758.7,2758.5,0.75338354]
[1643780801550,1.53218837,2758.6,2758.5,0.75338354]
[1643780801949,0.68383285,2758.9,2758.5,0.75338354]
[1643780802150,0.1812,2758.8,2758.5,0.75338354]
[1643780802355,1.53218837,2758.7,2758.5,0.75338354]
[1643780802549,1.53218837,2758.6,2758.5,0.75338354]